Cogmind - Beta 13 @@@ ROGUE MODE // 2024.06.22 @ 05:29:21 Player: doughoff Result: Self-destructed Performance ------------- Evolutions (6) 3000 Regions Visited (17) 3400 Robots Destroyed (59) 295 Value Destroyed (1560) 1560 Prototype IDs (50) 1000 Alien Tech Used (0) 0 Bonus (920) 920 TOTAL SCORE: 10175 Bonus ------- Follower Combat Kills 20 Aligned with FarCom 300 Met Data Miner 300 Met Imprinter 300 Cogmind --------- Core Integrity 574/1150 Matter 53/300 Energy 105/150 System Corruption 0% Temperature Warm (184) Movement Flying (98) Ox1 Location -4/Factory Parts ------- > --- POWER (2) -------- Micro Fission Core Improved Fusion Compressor > --- PROPULSION (6) --- Cesium-ion Thruster Cooled VTOL Module Cooled VTOL Module Cooled Cesium-ion Thruster > --- UTILITY (9) ------ Medium Storage Unit Enhanced Optical Array Advanced Terrain Scanner Experimental Terrain Scan Processor Improved Utility Shielding Hacking Suite Improved Hacking Suite Improved Hacking Suite System Shield > --- WEAPON (2) ------- Force Lance > --- INVENTORY (10) --- Cooled VTOL Module Transmission Jammer ECM Suite Advanced Reaction Control System Powered Armor Advanced Hardlight Generator Latent Energy Streamer Cooled Phase Cannon Peak State ------------ > --- POWER ------------ Backup Power I Micro Nuclear Core > --- PROPULSION ------- Improved VTOL Module Improved Cesium-ion Thruster Cooled VTOL Module Cooled VTOL Module Cooled VTOL Module Cooled Cesium-ion Thruster > --- UTILITY ---------- Medium Storage Unit Advanced Signal Interpreter Improved Terrain Scanner Experimental Terrain Scan Processor Advanced Reaction Control System Hacking Suite Improved Hacking Suite Improved Hacking Suite Advanced System Shield > --- WEAPON ----------- Heavy Phase Cannon Lance > --- INVENTORY -------- Cesium-ion Thruster Enhanced Optical Array Improved Sensor Array Advanced Actuator Array ECM Suite Authchip [Propulsion] Advanced Variable Charge Gun Latent Energy Streamer Missile Launcher Heavy Pick [Rating: 94] Favorites ----------- Power Backup Power I Engine Backup Power I Power Core Light Nuclear Core Propulsion Cooled VTOL Module Treads Light Treads Leg Improved Titanium Leg Wheel Compact Wheel Hover Unit Aerolev Unit Flight Unit Cooled VTOL Module Utility Improved Hacking Suite Device Advanced Terrain Scanner Storage Medium Storage Unit Processor Experimental Terrain Scan Processor Hackware Improved Hacking Suite Protection Medium Armor Plating Weapon Assault Rifle Energy Gun Improved Medium Laser Energy Cannon Latent Energy Streamer Ballistic Gun Assault Rifle Ballistic Cannon Assault Cannon Launcher Missile Launcher Slashing Weapon Mining Claw Piercing Weapon Spear Build | -11 -10 -10 -10 -9 -8 -7 -7 -7 -7 -7 -6 -6 -6 -6 -5 -5 -4 ------- Run | Yrd Mat Min Exi Min Mat Fac Was Fac Low Dat Pro Fac Low Zio Pro Fac Fac Slots Evolved 12 | . . . . . 4 2 . . . . . 2 . . . 2 2 Power 1 | . . . . . . . . . . . . . . . . 1 . Propulsion 4 | . . . . . 2 1 . . . . . . . . . . 1 Utility 7 | . . . . . 2 1 . . . . . 2 . . . 1 1 Weapon . | . . . . . . . . . . . . . . . . . . Parts Attached 173 | 7 8 . 1 1 45 8 . 10 4 3 11 26 . 3 3 8 35 Power 17 | 1 1 . . . 1 . . 2 . . . 6 . . . 2 4 Engine 6 | 1 1 . . . . . . 1 . . . 3 . . . . . Core 11 | . . . . . 1 . . 1 . . . 3 . . . 2 4 Reactor . | . . . . . . . . . . . . . . . . . . Propulsion 40 | 2 . . . . 18 2 . 5 . 1 1 3 . . . . 8 Treads 2 | 2 . . . . . . . . . . . . . . . . . Leg 9 | . . . . . 9 . . . . . . . . . . . . Wheel 2 | . . . . . 2 . . . . . . . . . . . . Hover 2 | . . . . . 2 . . . . . . . . . . . . Flight 25 | . . . . . 5 2 . 5 . 1 1 3 . . . . 8 Utility 62 | 1 6 . . 1 11 4 . 3 2 . 4 13 . 3 . 5 9 Device 23 | . 1 . . . 2 1 . 1 1 . 4 4 . 2 . 3 4 Storage 4 | 1 1 . . . 1 . . . . . . 1 . . . . . Processor 6 | . 1 . . . . . . 1 1 . . 1 . 1 . . 1 Hackware 14 | . . . . . 1 1 . . . . . 7 . . . 2 3 Protection 15 | . 3 . . 1 7 2 . 1 . . . . . . . . 1 Artifact . | . . . . . . . . . . . . . . . . . . Weapon 54 | 3 1 . 1 . 15 2 . . 2 2 6 4 . . 3 1 14 Energy Gun 6 | 1 1 . . . 3 . . . . . . . . . . . 1 Energy Cannon 10 | . . . 1 . 1 . . . 1 . . . . . . . 7 Ballistic Gun 10 | 2 . . . . 8 . . . . . . . . . . . . Ballistic Cannon 1 | . . . . . 1 . . . . . . . . . . . . Launcher 8 | . . . . . 1 . . . 1 1 3 . . . 2 . . Special Weapon . | . . . . . . . . . . . . . . . . . . Impact Weapon . | . . . . . . . . . . . . . . . . . . Slashing Weapon 1 | . . . . . 1 . . . . . . . . . . . . Piercing Weapon 18 | . . . . . . 2 . . . 1 3 4 . . 1 1 6 Special Melee Weapon . | . . . . . . . . . . . . . . . . . . Unidentified Prototypes 8 | . 1 . . . 3 . . . . . . 1 . . . . 3 Parts Lost 20 | . . . . . 9 . . . . . 3 1 . . . 2 5 Power 4 | . . . . . 1 . . . . . . . . . . 1 2 Propulsion 6 | . . . . . 2 . . . . . 2 . . . . . 2 Utility 9 | . . . . . 5 . . . . . 1 1 . . . 1 1 Weapon 1 | . . . . . 1 . . . . . . . . . . . . Highest Loss Streak 4 | . . . . . 4 . . . . . 3 1 . . . 1 2 To Critical Strikes 1 | . . . . . . . . . . . . . . . . 1 . Average Slot Usage (%) 91 | . 95 100 100 100 82 98 100 99 100 98 92 92 . 93 93 78 89 Engine 5 | . 14 14 14 14 2 . . 4 7 7 7 2 . . . . 3 Core 3 | . . . . . 5 7 7 1 . . . 3 . 6 6 5 5 Treads 7 | . 28 28 28 28 6 . . . . . . . . . . . . Leg 4 | . . . . . 19 . . . . . . . . . . . . Flight 19 | . . . . . 3 38 38 37 38 38 37 31 . 33 33 29 30 Device 4 | . 1 . . . . 11 7 10 7 7 6 6 . 6 13 6 7 Storage 8 | . 14 14 14 14 9 7 7 7 7 7 7 6 . 6 6 5 5 Processor 5 | . . . . . . . . . 15 15 15 10 . 6 13 11 11 Hackware 8 | . . . . . . 13 15 15 7 7 7 17 . 20 13 12 17 Protection 5 | . 7 14 14 14 13 4 7 2 . . . . . . . . . Energy Gun 2 | . 10 14 10 . 1 . . . . . . . . . . . . Energy Cannon 1 | . . . 3 14 . . . . 3 . . . . . . . 2 Ballistic Gun 6 | . 17 14 14 14 12 . . . . . . . . . . . . Piercing Weapon 4 | . . . . . . 12 15 15 7 11 6 10 . 13 4 5 3 Naked Turns . | . . . . . . . . . . . . . . . . . . Heaviest Build 58 | 12 37 37 44 44 58 24 23 23 24 20 20 26 24 25 25 25 34 Greatest Support 80 | 40 46 40 40 40 80 25 31 29 25 20 24 30 30 30 26 30 41 Greatest Overweight (x) 13 | 3 . . 1 1 13 . . . 1 . . . . . . 1 1 Average Overweight (x) . | . . . . . . . . . . . . . . . . . . Largest Inventory Capacity 15 | 8 15 15 15 15 15 10 10 10 10 10 10 10 10 10 10 10 10 Average Capacity 11 | 7 11 15 15 15 14 10 10 10 10 10 10 10 10 10 10 10 10 Most Carried 15 | 3 15 14 14 15 15 10 10 10 10 10 10 10 9 10 10 10 10 Average Carried 10 | 2 10 13 13 14 13 9 9 9 9 9 9 8 9 9 8 9 9 Final Capacity 15 | 8 15 15 15 15 10 10 10 10 10 10 10 10 10 10 10 10 10 Final Carried 15 | 3 14 14 14 15 10 10 10 10 9 9 10 9 9 8 10 10 8 Class Distribution -------------------- 43% | Mutant 24% | Hacker-Scout 14% | Hacker-Sprinter 9% | Scout Dominant Class ---------------- Mutant | -10/Materials Mutant | -10/Mines Mutant | -10/Exiles Mutant | -9/Mines Mutant | -8/Materials Hacker-Sprinter | -7/Factory Hacker-Sprinter | -7/Waste Hacker-Sprinter | -7/Factory Scout | -7/Lower Caves Scout | -7/Data Miner Scout | -6/Proximity Caves Hacker-Scout | -6/Factory Hacker-Scout | -6/Lower Caves Hacker-Sprinter | -6/Zion Hacker-Scout | -5/Proximity Caves Hacker-Sprinter | -5/Factory Hacker-Scout | -4/Factory Resources | -11 -10 -10 -10 -9 -8 -7 -7 -7 -7 -7 -6 -6 -6 -6 -5 -5 -4 ----------- Run | Yrd Mat Min Exi Min Mat Fac Was Fac Low Dat Pro Fac Low Zio Pro Fac Fac Matter Collected 2914 | 186 212 . . 20 1273 49 . 82 . . 149 302 . 55 137 270 179 Remotely . | . . . . . . . . . . . . . . . . . . Salvage Created 1942 | . 228 . . 97 1267 16 . 51 . . 7 172 . . 73 31 . Parts 109 | . 15 . . 5 74 2 . 3 . . . 5 . . 3 2 . Haulers Intercepted 4 | . . . . . 3 . . 1 . . . . . . . . . Recyclers Shooed . | . . . . . . . . . . . . . . . . . . Parts Field Recycled . | . . . . . . . . . . . . . . . . . . Retrieved Matter . | . . . . . . . . . . . . . . . . . . Parts Self-Destructed 5 | . . . . . . . . . . . 3 . . . 2 . . Prevented . | . . . . . . . . . . . . . . . . . . Kills | -11 -10 -10 -10 -9 -8 -7 -7 -7 -7 -7 -6 -6 -6 -6 -5 -5 -4 ------- Run | Yrd Mat Min Exi Min Mat Fac Was Fac Low Dat Pro Fac Low Zio Pro Fac Fac Combat Hostiles Destroyed 39 | . 4 . . 2 27 . . . . . 1 . . . 5 . . Guns 23 | . 4 . . . 19 . . . . . . . . . . . . Cannons 5 | . . . . . 5 . . . . . . . . . . . . AOE 11 | . . . . 2 3 . . . . . 1 . . . 5 . . Classes Destroyed 11 | . 3 . . . 8 . . . . . . . . . . . . Worker 4 | . . . . . 4 . . . . . . . . . . . . Builder 2 | . . . . . 2 . . . . . . . . . . . . Hauler 4 | . . . . . 3 . . 1 . . . . . . . . . Recycler 2 | . . . . . 1 . . . . . . 1 . . . . . Operator 3 | . 1 . . . 1 1 . . . . . . . . . . . Watcher 5 | . 2 . . . 1 . . . . . . 1 . . . 1 . Swarmer 16 | . . . . . 10 . . . . . 1 . . . 5 . . Grunt 14 | . 4 . . 2 8 . . . . . . . . . . . . Brawler 1 | . . . . . 1 . . . . . . . . . . . . Sentry 6 | . . . . . 6 . . . . . . . . . . . . Hunter 2 | . . . . . 2 . . . . . . . . . . . . Best Kill Streak 5 | . 2 . . 2 5 1 . 1 . . 1 1 . . 5 1 . Combat Bots Only 5 | . 2 . . 2 4 . . . . . 1 . . . 5 . . Max Kills in Single Turn 4 | . 1 . . 2 3 1 . 1 . . 1 1 . . 4 1 . Gunslinging . | . . . . . . . . . . . . . . . . . . Exploded 4 | . . . . 2 3 . . . . . 1 . . . 4 . . Melee . | . . . . . . . . . . . . . . . . . . Uniques/NPCs Destroyed . | . . . . . . . . . . . . . . . . . . Combat | -11 -10 -10 -10 -9 -8 -7 -7 -7 -7 -7 -6 -6 -6 -6 -5 -5 -4 -------- Run | Yrd Mat Min Exi Min Mat Fac Was Fac Low Dat Pro Fac Low Zio Pro Fac Fac Hostile Shots Fired 340 | . 11 . . 1 181 3 1 9 . . 22 30 . . 15 16 51 Missed 111 | . 2 . . . 39 1 1 3 . . 7 18 . . 9 8 23 Damage Taken 4071 | . 122 . . 12 2103 27 . 126 . . 311 101 . . 95 212 962 Core 917 | . . . . . 128 . . 16 . . 99 54 . . . 44 576 Absorbed by Shields . | . . . . . . . . . . . . . . . . . . Redirected to Shielding 18 | . . . . . . . . . . . . . . . . . 18 Regen/Repaired (Parts) 123 | . . . . . . . . 62 . . . 19 . . . . 42 Core Remaining (%) 91 | 100 . . . 100 76 . . . . . 83 . . . 93 95 . Volleys Fired 204 | . 18 . . 1 122 . . . 1 . 5 . . . 7 . 50 Largest 2 | . 2 . . 2 2 . . . 1 . 1 . . . 1 . 1 Hottest 100 | . 76 . . 80 100 . . . 36 . 36 . . . 36 . 90 Shots Fired 332 | . 36 . . 2 230 . . . 1 . 6 . . . 7 . 50 Gun 238 | . 36 . . 1 195 . . . . . . . . . . . 6 Cannon 78 | . . . . 1 33 . . . . . . . . . . . 44 Launcher 16 | . . . . . 2 . . . 1 . 6 . . . 7 . . Special . | . . . . . . . . . . . . . . . . . . Kinetic 222 | . 26 . . 1 195 . . . . . . . . . . . . Thermal 92 | . 10 . . . 32 . . . . . . . . . . . 50 Explosive 16 | . . . . . 2 . . . 1 . 6 . . . 7 . . Electromagnetic 2 | . . . . 1 1 . . . . . . . . . . . . Robot Hit Streak 18 | . 10 . . . 18 . . . . . 1 . . . . . . Robot Miss Streak 4 | . 4 . . . 4 . . . . . 1 . . . . . . Penetration Max . | . . . . . . . . . . . . . . . . . . Secondary Targets . | . . . . . . . . . . . . . . . . . . Shots Hit Robots 191 | . 20 . . . 156 2 . 1 . . 1 7 . . . 3 1 Core Hits 90 | . 11 . . 3 64 1 . 1 . . 1 1 . . 7 1 . Critical Kills . | . . . . . . . . . . . . . . . . . . Critical Parts Destroyed 1 | . . . . . 1 . . . . . . . . . . . . Critical Strikes 5 | . . . . . 4 . . . . . . . . . . 1 . Burn 1 | . . . . . 1 . . . . . . . . . . . . Destroy 1 | . . . . . 1 . . . . . . . . . . . . Blast 2 | . . . . . 2 . . . . . . . . . . . . Impale 1 | . . . . . . . . . . . . . . . . 1 . Melee Attacks 174 | . . . . . 8 15 . 21 9 . 18 51 . . 6 27 19 Impact . | . . . . . . . . . . . . . . . . . . Slashing 10 | . . . . . 8 2 . . . . . . . . . . . Piercing 164 | . . . . . . 13 . 21 9 . 18 51 . . 6 27 19 Sneak Attacks 4 | . . . . . . 1 . 1 . . . 1 . . . . 1 Combat Hostiles . | . . . . . . . . . . . . . . . . . . Follow-up Attacks 2 | . . . . . . . . . . . . 2 . . . . . Damage Inflicted 4539 | . 285 . . 103 2915 149 . 91 . . 145 346 . . 269 122 114 Guns 2488 | . 279 . . . 2209 . . . . . . . . . . . . Cannons 476 | . . . . . 476 . . . . . . . . . . . . Explosions 647 | . . . . 103 130 . . . . . 145 . . . 269 . . Melee 912 | . . . . . 90 149 . 91 . . . 346 . . . 122 114 Ramming 16 | . 6 . . . 10 . . . . . . . . . . . . Kinetic 2588 | . 177 . . . 2411 . . . . . . . . . . . . Thermal 376 | . 102 . . . 274 . . . . . . . . . . . . Explosive 544 | . . . . . 130 . . . . . 145 . . . 269 . . Electromagnetic 103 | . . . . 103 . . . . . . . . . . . . . Impact . | . . . . . . . . . . . . . . . . . . Slashing 90 | . . . . . 90 . . . . . . . . . . . . Piercing 822 | . . . . . . 149 . 91 . . . 346 . . . 122 114 Highest Corruption 10 | . . . . 2 9 1 9 10 10 10 10 . . . . . . Average Corruption 8 | . . . . 2 8 1 2 9 10 10 10 . . . . . . Corruption Purged . | . . . . . . . . . . . . . . . . . . Corruption Blocked . | . . . . . . . . . . . . . . . . . . Effects 108 | . . . . . 49 . 1 27 8 3 20 . . . . . . Message Errors 23 | . . . . . 12 . 1 3 1 1 5 . . . . . . Matter Fused 30 | . . . . . 14 . . 9 2 . 5 . . . . . . Heat Flow Errors 20 | . . . . . 9 . . 7 2 1 1 . . . . . . Energy Discharges 10 | . . . . . 4 . . 2 1 . 3 . . . . . . Parts Rejected 2 | . . . . . . . . 2 . . . . . . . . . Parts Fused 2 | . . . . . 1 . . 1 . . . . . . . . . Data Loss (minor) 11 | . . . . . 5 . . 1 1 1 3 . . . . . . Misfires 3 | . . . . . 2 . . . . . 1 . . . . . . Alerts 3 | . . . . . 1 . . 1 1 . . . . . . . . Misdirections 3 | . . . . . . . . 1 . . 2 . . . . . . Weapon Failures 1 | . . . . . 1 . . . . . . . . . . . . Overload Shots . | . . . . . . . . . . . . . . . . . . Overflow Damage 265 | . . . . . 20 31 . . . . 17 80 . . . 53 64 Projectiles . | . . . . . . . . . . . . . . . . . . Explosions 17 | . . . . . . . . . . . 17 . . . . . . Melee 248 | . . . . . 20 31 . . . . . 80 . . . 53 64 Knockbacks 7 | . . . . . 7 . . . . . . . . . . . . Impact . | . . . . . . . . . . . . . . . . . . Kinetic 6 | . . . . . 6 . . . . . . . . . . . . Secondary 1 | . . . . . 1 . . . . . . . . . . . . Self-Inflicted Damage 39 | . . . . . 2 . . . . . 37 . . . . . . Shots 1 | . . . . . . . . . . . 1 . . . . . . Rammed 2 | . 1 . . . 1 . . . . . . . . . . . . Targets Rammed 5 | . 1 . . . 4 . . . . . . . . . . . . Kicked 3 | . . . . . 3 . . . . . . . . . . . . Crushed . | . . . . . . . . . . . . . . . . . . Highest Temperature 665 | . 69 . . 27 507 7 287 277 106 250 178 . 40 292 8 97 665 Average Temperature 96 | . 25 . . 16 99 2 86 53 67 220 61 . 25 104 4 33 199 Received Heat Transfer 984 | . 72 . . 6 810 18 . 9 . . 18 24 . . . . 27 Effects 30 | . . . . . 7 . 2 . . . . . . . . . 21 Shutdowns 8 | . . . . . . . . . . . . . . . . . 8 Energy Bleed 2 | . . . . . 2 . . . . . . . . . . . . Interference 7 | . . . . . 3 . 2 . . . . . . . . . 2 Matter Decay 2 | . . . . . . . . . . . . . . . . . 2 Short Circuit 2 | . . . . . . . . . . . . . . . . . 2 Damage (minor) 3 | . . . . . 2 . . . . . . . . . . . 1 Damage (major) 4 | . . . . . . . . . . . . . . . . . 4 Damage (core) 2 | . . . . . . . . . . . . . . . . . 2 Siege Activations . | . . . . . . . . . . . . . . . . . . Robots Corrupted . | . . . . . . . . . . . . . . . . . . Combat Hostiles . | . . . . . . . . . . . . . . . . . . Parts Fried . | . . . . . . . . . . . . . . . . . . Impact Corruptions . | . . . . . . . . . . . . . . . . . . Robots Melted . | . . . . . . . . . . . . . . . . . . Combat Hostiles . | . . . . . . . . . . . . . . . . . . Parts Melted 1 | . . . . . 1 . . . . . . . . . . . . Heat Transferred 888 | . 222 . . . 666 . . . . . . . . . . . . Parts Sabotaged . | . . . . . . . . . . . . . . . . . . Parts Stolen . | . . . . . . . . . . . . . . . . . . Parts Stripped . | . . . . . . . . . . . . . . . . . . Power Chain Reactions . | . . . . . . . . . . . . . . . . . . Latent Energy Used 139 | . . . . 90 49 . . . . . . . . . . . . LE Corruption 3 | . . . . 2 1 . . . . . . . . . . . . Alert | -11 -10 -10 -10 -9 -8 -7 -7 -7 -7 -7 -6 -6 -6 -6 -5 -5 -4 ------- Run | Yrd Mat Min Exi Min Mat Fac Was Fac Low Dat Pro Fac Low Zio Pro Fac Fac Peak Influence 424 | . 203 . . 104 424 213 74 180 . . . 194 . . . 370 164 Initial 313 | . . . . . 40 186 59 51 . . . 56 . . . 313 90 Average 100 | . 35 . . 6 152 129 64 70 . . . 89 . . . 284 67 Maximum Alert Level 2 | . 1 . . . 2 1 . . . . . . . . . 1 . Low Security (%) 87 | 100 99 100 . 100 74 83 100 100 . . . 100 . . . 20 100 Level 1 10 | . . . . . 16 16 . . . . . . . . . 79 . Level 2 2 | . . . . . 8 . . . . . . . . . . . . Level 3 . | . . . . . . . . . . . . . . . . . . Level 4 . | . . . . . . . . . . . . . . . . . . Level 5 . | . . . . . . . . . . . . . . . . . . High Security . | . . . . . . . . . . . . . . . . . . Max Security . | . . . . . . . . . . . . . . . . . . Squads Dispatched 34 | . . . . . 8 4 . 4 . . 1 8 . . . 3 6 Investigation 16 | . . . . . 2 3 . 1 . . . 6 . . . 3 1 Extermination 5 | . . . . . . . . 1 . . . 2 . . . . 2 Reinforcement 5 | . . . . . . 1 . 1 . . . . . . . . 3 Assault 1 | . . . . . . . . . . . 1 . . . . . . Garrison 7 | . . . . . 6 . . 1 . . . . . . . . . Intercept . | . . . . . . . . . . . . . . . . . . Searches Triggered . | . . . . . . . . . . . . . . . . . . Construction Impeded . | . . . . . . . . . . . . . . . . . . Haulers Reinforced 2 | . . . . . . 1 . 1 . . . . . . . . . Active Scanning Responses . | . . . . . . . . . . . . . . . . . . Cargo Convoy Interrupts . | . . . . . . . . . . . . . . . . . . Stealth | -11 -10 -10 -10 -9 -8 -7 -7 -7 -7 -7 -6 -6 -6 -6 -5 -5 -4 --------- Run | Yrd Mat Min Exi Min Mat Fac Was Fac Low Dat Pro Fac Low Zio Pro Fac Fac Distress Signals 5 | . 1 . . . 1 . . 1 . . . . . . . . 2 Communications Jammed . | . . . . . . . . . . . . . . . . . . Distress Signals . | . . . . . . . . . . . . . . . . . . Times Spotted 185 | . 15 . . 2 46 8 4 17 1 . 25 15 . . 8 16 28 Peak Tracking Total 11 | . 4 . . 2 6 3 4 5 3 . 11 3 . . 6 10 7 Tactical Retreats 36 | . 1 . . . 5 2 . 4 1 . 4 5 . . 2 3 9 Traps | -11 -10 -10 -10 -9 -8 -7 -7 -7 -7 -7 -6 -6 -6 -6 -5 -5 -4 ------- Run | Yrd Mat Min Exi Min Mat Fac Was Fac Low Dat Pro Fac Low Zio Pro Fac Fac Traps Triggered 8 | . . . . . 1 1 . 3 . . . . . . . 2 1 Indirectly . | . . . . . . . . . . . . . . . . . . Trap Hack Attempts . | . . . . . . . . . . . . . . . . . . Triggered . | . . . . . . . . . . . . . . . . . . Disarmed . | . . . . . . . . . . . . . . . . . . Reprogrammed . | . . . . . . . . . . . . . . . . . . Reused . | . . . . . . . . . . . . . . . . . . Traps Extracted . | . . . . . . . . . . . . . . . . . . Installed . | . . . . . . . . . . . . . . . . . . Triggered . | . . . . . . . . . . . . . . . . . . Machines | -11 -10 -10 -10 -9 -8 -7 -7 -7 -7 -7 -6 -6 -6 -6 -5 -5 -4 ---------- Run | Yrd Mat Min Exi Min Mat Fac Was Fac Low Dat Pro Fac Low Zio Pro Fac Fac Machines Disabled 7 | . 1 . . 3 1 1 . . . . . 1 . . . . . Max in Single Turn 3 | . 1 . . 3 1 1 . . . . . 1 . . . . . Garrison Access 3 | . . . . . . . . . . . . . . . . . 3 Machines Repaired . | . . . . . . . . . . . . . . . . . . Machines Dismantled . | . . . . . . . . . . . . . . . . . . Machines Sabotaged . | . . . . . . . . . . . . . . . . . . Overloaded Fab Kills . | . . . . . . . . . . . . . . . . . . Hacking | -11 -10 -10 -10 -9 -8 -7 -7 -7 -7 -7 -6 -6 -6 -6 -5 -5 -4 --------- Run | Yrd Mat Min Exi Min Mat Fac Was Fac Low Dat Pro Fac Low Zio Pro Fac Fac Machines Accessed 86 | . 9 . 1 . 5 12 . 10 . 4 . 20 . . . 7 18 Terminals 55 | . 8 . . . 3 11 . 6 . . . 12 . . . 5 10 Fabricators 7 | . . . . . . . . 1 . . . 4 . . . 1 1 Repair Stations 4 | . . . . . . . . 2 . . . 1 . . . . 1 Recycling Units 3 | . 1 . . . 1 . . . . . . . . . . . 1 Scanalyzers 8 | . . . . . 1 1 . 1 . . . 2 . . . 1 2 Garrison Access 4 | . . . . . . . . . . . . 1 . . . . 3 Total Hacks 287 | . 29 . 1 . 13 50 . 25 . 34 . 64 . . . 16 55 Successful 178 | . 16 . 1 . 8 22 . 11 . 34 . 38 . . . 10 38 Failed 108 | . 12 . . . 5 28 . 14 . . . 26 . . . 6 17 Catastrophic 23 | . 2 . . . 1 4 . 5 . . . 6 . . . 1 4 Database Lockouts 1 | . 1 . . . . . . . . . . . . . . . . Manual 131 | . 15 . 1 . 4 33 . 7 . . . 30 . . . 12 29 Terminals 176 | . 28 . . . 9 49 . 13 . . . 33 . . . 10 34 Fabricators 26 | . . . . . . . . 3 . . . 15 . . . 4 4 Repair Stations 15 | . . . . . . . . 7 . . . 5 . . . . 3 Recycling Units 5 | . 1 . . . 3 . . . . . . . . . . . 1 Scanalyzers 22 | . . . . . 1 1 . 2 . . . 8 . . . 2 8 Garrison Access 8 | . . . . . . . . . . . . 3 . . . . 5 Terminal Hacks 93 | . 12 . 1 . 4 15 . 1 . 34 . 11 . . . 2 13 Record 15 | . 3 . . . . 1 . . . 11 . . . . . . . Part Schematic 15 | . . . . . . 1 . . . 13 . . . . . . 1 Robot Schematic 7 | . . . . . . . . . . 7 . . . . . . . Robot Analysis 9 | . 6 . . . . 1 . . . . . . . . . . 2 Prototype ID Bank 7 | . 2 . . . 1 1 . . . 3 . . . . . . . Level Access Points 2 | . . . . . . . . . . . . 1 . . . . 1 Branch Access Points 4 | . . . . . . 1 . . . . . 1 . . . . 2 Machine Index 1 | . . . . . . . . . . . . 1 . . . . . Terminal Index 4 | . . . . . . 1 . . . . . 1 . . . 1 1 Fabricator Index 3 | . . . . . . 2 . . . . . . . . . . 1 Unreport Threat 6 | . . . . . 1 2 . . . . . . . . . 1 2 Locate Traps 6 | . . . . . . 3 . . . . . 1 . . . . 2 Dispatch Records 1 | . . . . . . . . . . . . 1 . . . . . Maintenance Status 1 | . . . . . . . . . . . . 1 . . . . . Recall Investigation 3 | . . . . . . 1 . . . . . 2 . . . . . Recall Extermination 2 | . . . . . . . . . . . . 1 . . . . 1 Hauler Manifests 4 | . 1 . . . 2 1 . . . . . . . . . . . Zone Layout 2 | . . . . . . . . 1 . . . 1 . . . . . Derelict Proto ID Bank 1 | . . . 1 . . . . . . . . . . . . . . Fabricator Hacks 18 | . . . . . . . . 2 . . . 10 . . . 3 3 Load Schematic 12 | . . . . . . . . 1 . . . 7 . . . 2 2 Build 6 | . . . . . . . . 1 . . . 3 . . . 1 1 Repair Station Hacks 12 | . . . . . . . . 5 . . . 4 . . . . 3 Scan Component 6 | . . . . . . . . 2 . . . 3 . . . . 1 Repair 4 | . . . . . . . . 2 . . . 1 . . . . 1 Refit 2 | . . . . . . . . 1 . . . . . . . . 1 Recycling Unit Hacks 3 | . 1 . . . 1 . . . . . . . . . . . 1 Report Inventory 2 | . 1 . . . . . . . . . . . . . . . 1 Retrieve Matter 1 | . . . . . 1 . . . . . . . . . . . . Scanalyzer 18 | . . . . . 1 1 . 2 . . . 4 . . . 2 8 Insert Component 10 | . . . . . 1 1 . 1 . . . 2 . . . 1 4 Analyze 8 | . . . . . . . . 1 . . . 2 . . . 1 4 Garrison Access Hacks 3 | . . . . . . . . . . . . . . . . . 3 Seal Access 3 | . . . . . . . . . . . . . . . . . 3 Unauthorized Hacks 31 | . 3 . . . 2 6 . 1 . . . 9 . . . 3 7 Terminals 26 | . 3 . . . 2 6 . 1 . . . 6 . . . 2 6 Assimilate 8 | . . . . . . 2 . . . . . 3 . . . . 3 Botnet 17 | . 3 . . . 2 3 . 1 . . . 3 . . . 2 3 Operators 1 | . . . . . . 1 . . . . . . . . . . . Fabricators 5 | . . . . . . . . . . . . 3 . . . 1 1 Recompile 5 | . . . . . . . . . . . . 3 . . . 1 1 Repair Stations . | . . . . . . . . . . . . . . . . . . Recycling Units . | . . . . . . . . . . . . . . . . . . Scanalyzers . | . . . . . . . . . . . . . . . . . . Garrison Access . | . . . . . . . . . . . . . . . . . . Data Cores Recovered 2 | . 1 . . . . . . . . . . . . . . 1 . Used 1 | . . . . . . . . . . . . . . . . 1 . Hacking Detections 67 | . 7 . . . 5 10 . 7 . . . 19 . . . 6 13 Full Trace Events 10 | . 1 . . . 1 3 . 1 . . . 3 . . . 1 . Feedback Events 2 | . . . . . . 1 . . . . . 1 . . . . . Corruption 1 | . . . . . . 1 . . . . . . . . . . . Hackware Fried 1 | . . . . . . . . . . . . 1 . . . . . Feedback Blocked . | . . . . . . . . . . . . . . . . . . Robot Schematics Acquired 9 | . . . . . . . . . . 7 . . . 2 . . . Robots Built . | . . . . . . . . . . . . . . . . . . Authchips . | . . . . . . . . . . . . . . . . . . Time . | . . . . . . . . . . . . . . . . . . Total Robot Build Rating . | . . . . . . . . . . . . . . . . . . Part Schematics Acquired 37 | . . . . . . 1 . 1 . 13 . 2 . 14 . 1 5 Parts Built 6 | . . . . . . . . 1 . . . 3 . . . 1 1 Authchips 4 | . . . . . . . . . . . . 2 . . . 1 1 Time 386 | . . . . . . . . 67 . . . 141 . . . 44 134 Total Part Build Rating 27 | . . . . . . . . 4 . . . 15 . . . 4 4 Parts Repaired 4 | . . . . . . . . 2 . . . 1 . . . . 1 Time 284 | . . . . . . . . 126 . . . 88 . . . . 70 Parts Recycled . | . . . . . . . . . . . . . . . . . . Recycled Matter . | . . . . . . . . . . . . . . . . . . Retrieved Matter . | . . . . . . . . . . . . . . . . . . Retrieved Components . | . . . . . . . . . . . . . . . . . . Parts Scanalyzed 8 | . . . . . . . . 1 . . . 2 . . . 1 4 Part Schematics Acquired 8 | . . . . . . . . 1 . . . 2 . . . 1 4 Parts Damaged 1 | . . . . . . . . 1 . . . . . . . . . Bothacking | -11 -10 -10 -10 -9 -8 -7 -7 -7 -7 -7 -6 -6 -6 -6 -5 -5 -4 ------------ Run | Yrd Mat Min Exi Min Mat Fac Was Fac Low Dat Pro Fac Low Zio Pro Fac Fac Used RIF Installer . | . . . . . . . . . . . . . . . . . . Robots Hacked . | . . . . . . . . . . . . . . . . . . Non-combat . | . . . . . . . . . . . . . . . . . . Combat . | . . . . . . . . . . . . . . . . . . Robot Hacks Applied . | . . . . . . . . . . . . . . . . . . Relay Couplers Released 2 | . . . . . . . . 2 . . . . . . . . . Machine Destruction 2 | . . . . . . . . 2 . . . . . . . . . Fabnet Peak Effective % . | . . . . . . . . . . . . . . . . . . Robots Rewired . | . . . . . . . . . . . . . . . . . . Allies Hacked . | . . . . . . . . . . . . . . . . . . Hacks Repelled . | . . . . . . . . . . . . . . . . . . Allies | -11 -10 -10 -10 -9 -8 -7 -7 -7 -7 -7 -6 -6 -6 -6 -5 -5 -4 -------- Run | Yrd Mat Min Exi Min Mat Fac Was Fac Low Dat Pro Fac Low Zio Pro Fac Fac Total Allies 11 | . . . . . . 1 . 3 . . 1 3 . . . . 3 Largest Group 3 | . . . . . . 1 . 3 . . 1 2 . . . . 2 Highest-Rated Group 96 | . . . . . . 26 . 93 . . 96 52 . . . . 20 Highest-Rated Ally 96 | . . . . . . 26 . 31 . . 96 26 . . . . 10 Total Orders 4 | . . . . . . . . . . . . 2 . . . . 2 STAY 3 | . . . . . . . . . . . . 2 . . . . 1 FOLLOW 1 | . . . . . . . . . . . . . . . . . 1 Ally Attacks 37 | . . . . . . . . 31 . . 6 . . . . . . Total Damage 546 | . . . . . . . . 362 . . 184 . . . . . . Kills 6 | . . . . . . . . 4 . . 2 . . . . . . Allies Corrupted . | . . . . . . . . . . . . . . . . . . Allies Melted . | . . . . . . . . . . . . . . . . . . Intel | -11 -10 -10 -10 -9 -8 -7 -7 -7 -7 -7 -6 -6 -6 -6 -5 -5 -4 ------- Run | Yrd Mat Min Exi Min Mat Fac Was Fac Low Dat Pro Fac Low Zio Pro Fac Fac Robot Analysis Total 9 | . 6 . . . . 1 . . . . . . . . . . 2 Derelict Logs Recovered 5 | . . . . . . . . . . . 1 . . 2 2 . . Drone Launches . | . . . . . . . . . . . . . . . . . . Drone Recoveries . | . . . . . . . . . . . . . . . . . . Exploration | -11 -10 -10 -10 -9 -8 -7 -7 -7 -7 -7 -6 -6 -6 -6 -5 -5 -4 ------------- Run | Yrd Mat Min Exi Min Mat Fac Was Fac Low Dat Pro Fac Low Zio Pro Fac Fac Turns Passed 10139 | 65 1151 231 439 370 2296 301 18 742 285 46 628 1189 7 286 277 505 1303 Spaces Moved 13509 | 34 648 121 246 203 1249 899 84 1402 413 79 1264 2156 16 966 597 931 2201 Core 12 | 7 . . . . 5 . . . . . . . . . . . . Treads 1390 | 27 648 121 246 203 145 . . . . . . . . . . . . Legs 546 | . . . . . 546 . . . . . . . . . . . . Wheels 177 | . . . . . 177 . . . . . . . . . . . . Hover . | . . . . . . . . . . . . . . . . . . Flight 11384 | . . . . . 376 899 84 1402 413 79 1264 2156 16 966 597 931 2201 Fastest Speed 6 | 50 160 160 160 160 26 23 14 17 23 26 20 17 17 17 23 17 6 Average Speed 46 | 153 160 160 171 178 121 23 19 24 32 26 27 24 17 22 23 28 22 Slowest Speed 700 | 200 160 160 240 240 700 24 23 26 94 26 29 29 17 23 23 100 99 Overloaded Moves 333 | . . . . . . . 36 6 . . 13 4 16 64 . 28 166 Propulsion Burnouts . | . . . . . . . . . . . . . . . . . . Robots Hopped 47 | . . . . . 1 1 . 3 . . . 6 . . . 12 24 Cave-ins Triggered . | . . . . . . . . . . . . . . . . . . Exploration Rate (%) 49 | 4 93 26 60 51 43 30 80 36 27 72 86 37 5 86 69 24 57 Regions Visited 17 Branch Regions 9 Pre-discovered Areas 2 | . . . . . . . . . . 1 . . . 1 . . . Known Exits Taken 8 | . . . . . . . . 1 1 1 1 1 . 1 1 1 . Unknown Exits Taken 7 | 1 1 1 1 1 1 . . . . . . . 1 . . . . Scrap Searched 11 | . . . . 1 . . . . . . 5 . . 3 2 . . Spaces Dug 269 | . . . . 9 1 8 . 14 24 . 53 25 . . 52 20 63 Terrain Destroyed 330 | . . . . 9 20 8 . 14 24 . 72 25 . . 75 20 63 Melee 109 | . . . . . 1 8 . 14 8 . 11 25 . . 6 20 16 Projectile 53 | . . . . . 6 . . . . . . . . . . . 47 AOE 168 | . . . . 9 13 . . . 16 . 61 . . . 69 . . Terrain Rammed . | . . . . . . . . . . . . . . . . . . Walls Destroyed . | . . . . . . . . . . . . . . . . . . Machines Disabled . | . . . . . . . . . . . . . . . . . . Actions | -11 -10 -10 -10 -9 -8 -7 -7 -7 -7 -7 -6 -6 -6 -6 -5 -5 -4 --------- Run | Yrd Mat Min Exi Min Mat Fac Was Fac Low Dat Pro Fac Low Zio Pro Fac Fac Total 16665 | 43 728 159 264 207 1782 972 85 1773 545 103 1507 2721 19 1032 714 1116 2895 Wait 2492 | . 32 37 16 2 293 46 . 338 119 21 205 484 4 61 100 152 582 Move 13402 | 33 647 120 245 202 1246 897 83 1395 412 78 1263 2143 15 965 596 907 2155 Hop 44 | . . . . . 1 1 . 3 . . . 6 . . . 11 22 Pick Up 83 | 3 14 1 1 1 26 5 1 6 . . 1 8 . 1 1 5 9 Fast Attach 51 | 6 3 . . . 14 2 . 3 . . . 4 . 1 . 3 15 Attach 50 | . . . . . 16 2 . 3 . 1 2 9 . 1 . 5 11 Detach 22 | . 1 . . . 2 . . . . 1 3 2 . 1 1 2 9 Swap 72 | 1 5 . 1 1 15 4 . 4 4 2 9 13 . 1 3 . 9 Drop 80 | . 7 1 1 . 35 4 1 3 . . 1 8 . 1 . 4 14 Fire 204 | . 18 . . 1 122 . . . 1 . 5 . . . 7 . 50 Melee 160 | . . . . . 8 11 . 18 9 . 18 44 . . 6 27 19 Ram 1 | . . . . . 1 . . . . . . . . . . . . Kick 3 | . . . . . 3 . . . . . . . . . . . . Crush 1 | . 1 . . . . . . . . . . . . . . . . Escape Stasis . | . . . . . . . . . . . . . . . . . . Rewire . | . . . . . . . . . . . . . . . . . . Trap . | . . . . . . . . . . . . . . . . . . Miscellaneous . | . . . . . . . . . . . . . . . . . . Route ------- -11/Scrapyard -10/Materials (discovered 4 exits: [*Mat x3] / [*Min]) -10/Mines -10/Exiles -9/Mines -8/Materials -7/Factory (discovered 5 exits: *Fac x2 / Sto / Low x2) -7/Waste -7/Factory (discovered 2 exits: *Sto / *Low) -7/Lower Caves -7/Data Miner -6/Proximity Caves -6/Factory (discovered 6 exits: Fac x4 / *Low x2) -6/Lower Caves -6/Zion (discovered 2 exits: [Dee] / *Pro) -5/Proximity Caves -5/Factory (discovered 4 exits: *Fac x2 / *Upp / [Ext]) -4/Factory (discovered 7 exits: *Res x4 / *Upp x2 / Arm) History --------- Turn | Location | Event 17 | -11/Scrapyard | Discovered new exit (range 16) 66 | -11/Scrapyard | Entered Materials 314 | -10/Materials | Build established: Mutant 315 | -10/Materials | Discovered new exit (range 9) 501 | -10/Materials | Discovered new exit (range 9) 920 | -10/Materials | Discovered new exit (range 11) 1069 | -10/Materials | Central database locked down 1200 | -10/Materials | Discovered new exit (range 11) 1217 | -10/Materials | Entered Mines 1332 | -10/Mines | YI-UF0 nonchalantly dropped a Grenade Launcher on the ground 1442 | -10/Mines | Deemed a non-threat by the Exiles lab entrance 1442 | -10/Mines | Discovered new exit (range 5) 1448 | -10/Mines | Entered Exiles 1485 | -10/Exiles | Met 8R-AWN 1511 | -10/Exiles | Met EX-HEX 1562 | -10/Exiles | Met EX-BIN 1584 | -10/Exiles | Aligned with FarCom system 1586 | -10/Exiles | Given EX-Vault access code 1624 | -10/Exiles | Opened EX-Vault 1636 | -10/Exiles | Found Latent Energy Streamer 1668 | -10/Exiles | Warned to stay clear of 0b10 Research branches 1712 | -10/Exiles | Met EX-DEC 1775 | -10/Exiles | Discovered new exit (range 11) 1887 | -10/Exiles | Left Exiles lab with Latent Energy Streamer 1887 | -10/Exiles | Entered Mines 2063 | -9/Mines | Found a damaged Exp. Sensor Array with a note attached 2067 | -9/Mines | Found Prototype Device 2239 | -9/Mines | Discovered new exit (range 12) 2257 | -9/Mines | Entered Materials 2257 | -8/Materials | Evolved 4 slots: Propulsion x2, Utility x2 2650 | -8/Materials | Garrison activated, responded to threat 2815 | -8/Materials | Lost 4 parts (3u1w) 3021 | -8/Materials | Garrison activated, responded to threat 3034 | -8/Materials | Lost 4 parts (1p1n2u) 3252 | -8/Materials | Discovered new exit (range 16) 4553 | -8/Materials | Entered Factory 4553 | -7/Factory | Evolved 2 slots: Propulsion x1, Utility x1 4592 | -7/Factory | Discovered new exit (range 8) 4632 | -7/Factory | Identified Exp. Sensor Array 4658 | -7/Factory | Identified exit to Storage 4658 | -7/Factory | Identified exit to Lower Caves 4729 | -7/Factory | Discovered new exit (range 14) 4854 | -7/Factory | Sucked down chute 4854 | -7/Factory | Entered Waste 4856 | -7/Waste | Spotted C-40 Crusher 4862 | -7/Waste | Spotted C-40 Crusher 4863 | -7/Waste | Found Prototype Processor 4866 | -7/Waste | Spotted C-40 Crusher 4867 | -7/Waste | Spotted C-40 Crusher 4868 | -7/Waste | Spotted C-40 Crusher 4869 | -7/Waste | EMP discharged 4869 | -7/Waste | Discovered new exit (range 16) 4870 | -7/Waste | Spotted C-40 Crusher 4872 | -7/Waste | Entered Factory 4902 | -7/Factory | Build established: Hacker-Sprinter 4950 | -7/Factory | Discovered exit to Storage (range 10) 5028 | -7/Factory | Repaired Lgt. Nuclear Core 5055 | -7/Factory | Allied Derelicts emerged from ambush trap array 5159 | -7/Factory | Assembled infested ambush trap array 5193 | -7/Factory | System corruption reached 10% 5204 | -7/Factory | Fabricated Cld. VTOL Module? 5330 | -7/Factory | Garrison activated, responded to threat 5512 | -7/Factory | Discovered exit to Lower Caves (range 5) 5607 | -7/Factory | Repaired Broken Cld. VTOL Module 5614 | -7/Factory | Entered Lower Caves 5896 | -7/Lower Caves | A Derelict revealed a hidden shortcut to meet someone special 5898 | -7/Lower Caves | Identified exit to Data Miner 5899 | -7/Lower Caves | Entered Data Miner 5899 | -7/Data Miner | Discovered new exit (range 6) 5903 | -7/Data Miner | Met Data Miner 5911 | -7/Data Miner | Learned location of Section 7 (-3) 5911 | -7/Data Miner | Acquired the access code to Warlord's prototype stash 5915 | -7/Data Miner | Received God Mode back door access code from Data Miner 5945 | -7/Data Miner | Identified exit to Proximity Caves 5945 | -7/Data Miner | Entered Proximity Caves 6060 | -6/Proximity Caves | Build established: Scout 6107 | -6/Proximity Caves | Learned Factory stockpile data 6247 | -6/Proximity Caves | Attracted the attention of an 0b10 checkpoint 6541 | -6/Proximity Caves | Escorted by Enhanced Grunt 6545 | -6/Proximity Caves | Attracted the attention of an 0b10 outpost 6570 | -6/Proximity Caves | Lost 3 parts (2n1u) 6570 | -6/Proximity Caves | Discovered new exit (range 10) 6572 | -6/Proximity Caves | Identified exit to Factory 6573 | -6/Proximity Caves | Entered Factory 6573 | -6/Factory | Evolved 2 slots: Utility x2 6692 | -6/Factory | Repaired Broken Cld. VTOL Module 6834 | -6/Factory | Identified exit to Factory 6834 | -6/Factory | Identified exit to Lower Caves 7016 | -6/Factory | Identified Exp. Terrain Scan Processor 7073 | -6/Factory | Build established: Hacker-Scout 7208 | -6/Factory | Fabricated Imp. Hacking Suite (x1) 7257 | -6/Factory | Fabricated Imp. Hacking Suite? 7292 | -6/Factory | Imp. Hacking Suite fried by hacking feedback 7313 | -6/Factory | Fabricated Imp. Hacking Suite? 7762 | -6/Factory | Entered Lower Caves 7763 | -6/Lower Caves | A Derelict revealed a hidden shortcut to a safe place 7769 | -6/Lower Caves | Entered Zion 7782 | -6/Zion | Discovered new exit (range 18) 7825 | -6/Zion | Learned 4 Factory zone layouts 7907 | -6/Zion | Given A8's code to call for help 7973 | -6/Zion | Rebuked by Imprinter 7993 | -6/Zion | Discovered new exit (range 17) 8045 | -6/Zion | Acquired unknown access codes intercepted by a Zionite 8054 | -6/Zion | Identified exit to Proximity Caves 8055 | -6/Zion | Entered Proximity Caves 8178 | -5/Proximity Caves | Spotter reported a threat 8317 | -5/Proximity Caves | Learned Factory stockpile data 8323 | -5/Proximity Caves | Learned 4 Factory zone layouts 8331 | -5/Proximity Caves | Discovered exit to Factory (range 5) 8332 | -5/Proximity Caves | Entered Factory 8332 | -5/Factory | Evolved 2 slots: Power x1, Utility x1 8333 | -5/Factory | Identified exit to Factory 8355 | -5/Factory | Discovered new exit (range 18) 8369 | -5/Factory | Identified exit to Upper Caves 8404 | -5/Factory | Discovered exit to Factory (range 20) 8422 | -5/Factory | Discovered new exit (range 19) 8601 | -5/Factory | Fabricated Cld. VTOL Module? 8837 | -5/Factory | Entered another Factory area 8837 | -4/Factory | Evolved 2 slots: Propulsion x1, Utility x1 8854 | -4/Factory | Discovered new exit (range 15) 8969 | -4/Factory | Identified exit to Research 9075 | -4/Factory | Repaired Cld. VTOL Module 9219 | -4/Factory | Spotted B-86 Titan 9314 | -4/Factory | Discovered new exit (range 10) 9315 | -4/Factory | Discovered new exit (range 13) 9367 | -4/Factory | Identified exit to Upper Caves 9367 | -4/Factory | Identified exit to Armory 9412 | -4/Factory | Fabricated Cld. VTOL Module? 9928 | -4/Factory | Found Powered Armor 10138 | -4/Factory | Core integrity fell below 50% 10140 | -4/Factory | Self-destructed Last Messages --------------- 10120_ Enh. Optical Array temporarily disabled. 10122_ Power failure, Mic. Fission Core shutdown. 10123_ Overheating: Imp. Utility Shielding damaged (-47). 10123_ Knocked back. 10123_ W-44 Eye knocked back. 10123_ C-35 Carver knocked back. 10123_ U-05 Engineer lays Concrete. 10124_ Overheating: Matter decay (-16). 10125_ Power failure, Imp. Fusion Compressor shutdown. 10126_ Imp. VTOL Module destroyed. 10127_ Mic. Fission Core severed. 10128_ Overheating: Cld. VTOL Module damaged (-8). 10128_ Overheating: Imp. Fusion Compressor damaged (-41). 10128_ Overheating: Enh. Optical Array damaged (-4). 10128_ Acquired Mic. Fission Core. 10129_ Overheating: Core damaged (-195). 10130_ Power failure, Mic. Fission Core shutdown. 10131_ Power failure, Imp. Fusion Compressor shutdown. 10134_ Imp. Cesium-ion Thruster destroyed. 10137_ Cld. VTOL Module severed. Map ----- +----------------------------------------------------+ | ??????????? # """ ########## | | ??????????? + """ + + | | ?????????? # """ ########## | | ????????? # ########## "" | | ???????? # """ ########## "" | | ????????####### # """ ############# | | ???????######## # """ ############# | | ???????######## # ############# | | ?????? ######## ###################### | | ?????? ######## ###################### | | ??????######### ###################### | | ?????? # ###################### | | ?????? s # ###################### | | ?????# s # # ######### | | ?????? s # #""" """" ######### | | ?????# + #"R """" ######### | | #???## ss # #""" """"[ ######### | | ???#?? # # """" ######### | | #????? # # """" ######### | | ?#?###? # # """" ######### | | ?##????#+###### # ######### | | ?#??#?## # ######### | | ?????### + ######### | | ????##?# # ######### | | #??#####k # "######## | | ###?# @ #####"######## ####### | | #?### ###########/#################"###### | | ?##?# ####### =c ########### ### | | ###?# ####### ########### T | | ??#?# ####### """"""" "########## ## | | ??### ####### [ """"""" # ] ##### ###+ | | ?#### #?##### """"""" # ##### ## | | ##### ####### """"""" # """ ### ## | | ?#### ####### # """ c ## | | #?### + """"""" # """p ## " | | ##### ####### ! """"""" # ## " | | ##### ####### """"""" # ! ## " | | ###?# ###?### """"""" # ## " | | #?### ####### # # ## " | | ##### #?##?############### ## " | | #?#?# #?#?##?#######?##### """ # ## " | | ##?## ###??###?#######?### """ # ## | | ##### ###?#######?######## """ # ## ? | | ##### ######?##?#??###??## # ##? | | ##??# #??#############??####??### ##?? | | ##?## ##?######?#?##??##????#?### ## | | ##?## #########?#????#?########## ##?? | | ?#### #?##?#########???# ^^ ### | | #?### #######?#??##????# ^ | | ##### ####??###?#?#?#?## ^ ^ ^ | +----------------------------------------------------+ Best States ------------- Heat Dissipation 43 Energy Generation 45 Energy Capacity 265 Matter Stores 300 Matter Capacity 300 Sight Range 22 Robot Scan Range 20 Terrain Scan Range 20 Terrain Scan Density 1010 ECM Strength 1 Additional Mass Support 6 Armor Coverage 825 Utility Shielding 66 Evasion (%) 66 Recoil Reduction 2 Offensive Hacking 34 Defensive Hacking 14 Authchip Count 2 Item Schematics ----------------- Hacking Suite | -7/Factory | Hacked Cld. VTOL Module | -7/Factory | Scanalyzed Combat Drone Bay | -7/Data Miner | Free Lgt. Regenerative Plating | -7/Data Miner | Free Biomechanical Wings | -7/Data Miner | Free Gravity Neutralizer | -7/Data Miner | Free Cld. Plasma Cannon | -7/Data Miner | Free Arm. Medium Treads | -7/Data Miner | Free Adv. Trap Extractor | -7/Data Miner | Free Mass Driver | -7/Data Miner | Free Imp. Trap Scanner | -7/Data Miner | Free Variable Charge Gun | -7/Data Miner | Free Recoil Nullifier | -7/Data Miner | Free Hyp. Mass Driver | -7/Data Miner | Free Imp. Antigrav System | -7/Data Miner | Free Imp. Hacking Suite | -6/Factory | Scanalyzed Exp. Terrain Scan Processor | -6/Factory | Scanalyzed Field Propulsion Drive | -6/Zion | Archive Plasma Rifle | -6/Zion | Archive Imp. Kinecellerator | -6/Zion | Archive Imp. Reaction Control System | -6/Zion | Archive Focal Shield | -6/Zion | Archive Remote Force Field | -6/Zion | Archive Adv. Coolant Injector | -6/Zion | Archive Imp. Remote Datajack | -6/Zion | Archive Phase Shifter | -6/Zion | Archive Adv. Thermal Shield | -6/Zion | Archive Force Field | -6/Zion | Archive Hvy. Treads | -6/Zion | Archive Imp. Actuator Array | -6/Zion | Archive Enh. Gauss Cannon | -6/Zion | Archive Mic. Nuclear Core | -5/Factory | Scanalyzed Enh. Optical Array | -4/Factory | Scanalyzed Force Lance | -4/Factory | Scanalyzed ECM Suite | -4/Factory | Scanalyzed Adv. System Shield | -4/Factory | Hacked Cld. Phase Cannon | -4/Factory | Scanalyzed Robot Schematics ------------------ H-66 Slayer | -7/Data Miner | Free M-28 Smith | -7/Data Miner | Free M-14 Sweeper | -7/Data Miner | Free X-67 Chaingunner | -7/Data Miner | Free M-22 Extractor | -7/Data Miner | Free A-15 Conveyor | -7/Data Miner | Free B-60 Warrior | -7/Data Miner | Free R-06 Scavenger | -6/Zion | Archive B-48 Gladiator | -6/Zion | Archive Fabricated ------------ Cld. VTOL Module | x1 | -7/Factory Imp. Hacking Suite | x1 | -6/Factory | Authchip Imp. Hacking Suite | x1 | -6/Factory | Authchip Imp. Hacking Suite | x1 | -6/Factory Cld. VTOL Module | x1 | -5/Factory | Authchip Cld. VTOL Module | x1 | -4/Factory | Authchip Alien Tech Used ----------------- None Achievements -------------- Slippery One Speed Demon Whoosh! Challenges ------------ None Game ------ Seed GammaThiefPerforator Manual? 0 Play Time 03:56:24 Cumulative 46.6 hours Start 2024.06.21 @ 23:18:40 End 2024.06.22 @ 05:29:21 Sessions 9 Manual Loads 0 Difficulty Rogue Special Mode None Game No. 49 Rogue 42 Adventurer 7 Explorer 0 Win Type - Total 1 Types 1/0/0/0/0/0/0/0/0 Lore% 16 Gallery% 33 Achievement% 35 Wizard Run 0 Options --------- Layout 0 ASCII 0 Keyboard 0 Movement Numpad Keybinds 0 Fullscreen 2 Font 24/Smallcaps Map View 113x50 Zoom Use 0% Tactical HUD 1 Map Filters NONE Filters NONE Steam 1 RUN: ac112e64-ea5d-40af-8d0c-43c5e8e1feff